[Event "Live Chess"]
[Site "Chess.com"]
[Date "2023.05.21"]
[Round "-"]
[White "Ian-Morley"]
[Black "Brooms1989"]
[Result "0-1"]
[WhiteElo "1051"]
[BlackElo "1131"]
[TimeControl "300"]
[EndTime "3:23:32 PDT"]
[Termination "Brooms1989 won by resignation"]

1. e4 {[%clk 0:04:56.5]} 1... e5 {[%clk 0:04:56.1]} 2. Nf3 {[%clk 0:04:55.5]}
2... Nc6 {[%clk 0:04:54.4]} 3. Bc4 {[%clk 0:04:54.4]} 3... Nf6 {[%clk
0:04:53.2]} 4. Ng5 {[%clk 0:04:53.4]} 4... d5 {[%clk 0:04:51.5]} 5. exd5 {[%clk
0:04:52.5]} 5... Na5 {[%clk 0:04:50.7]} 6. Bb5+ {[%clk 0:04:51.9]} 6... c6
{[%clk 0:04:50]} 7. dxc6 {[%clk 0:04:51.4]} 7... bxc6 {[%clk 0:04:49.5]} 8. Qf3
{[%clk 0:04:51]} 8... h6 {[%clk 0:04:19.4]} 9. Ne4 {[%clk 0:04:49.4]} 9... Nxe4
{[%clk 0:04:04.2]} 10. Qxe4 {[%clk 0:04:48]} 10... a6 {[%clk 0:03:56.5]} 11.
Bxc6+ {[%clk 0:04:45.6]} 11... Bd7 {[%clk 0:03:55.8]} 12. Bxd7+ {[%clk
0:04:43.2]} 12... Kxd7 {[%clk 0:03:53.5]} 13. Qd5+ {[%clk 0:04:41]} 13... Bd6
{[%clk 0:03:49.1]} 14. Qxf7+ {[%clk 0:04:37.3]} 14... Kc6 {[%clk 0:03:47.3]} 15.
b4 {[%clk 0:04:28.3]} 15... Nb7 {[%clk 0:03:35.8]} 16. Qc4+ {[%clk 0:04:25.9]}
16... Kd7 {[%clk 0:03:33.4]} 17. O-O {[%clk 0:04:16.2]} 17... Rc8 {[%clk
0:03:31.5]} 18. Qxa6 {[%clk 0:04:13.9]} 18... Qc7 {[%clk 0:03:25.9]} 19. Qa4+
{[%clk 0:04:10.1]} 19... Ke7 {[%clk 0:03:23.6]} 20. c3 {[%clk 0:04:08.1]} 20...
Rhf8 {[%clk 0:03:16.5]} 21. Re1 {[%clk 0:04:05.8]} 21... Qb6 {[%clk 0:03:08.9]}
22. d4 {[%clk 0:04:00.9]} 22... Rf5 {[%clk 0:03:00.9]} 23. Re2 {[%clk
0:03:47.6]} 23... Rcf8 {[%clk 0:02:57]} 24. Be3 {[%clk 0:03:40]} 24... e4 {[%clk
0:02:52.4]} 25. Nd2 {[%clk 0:03:31.4]} 25... Rh5 {[%clk 0:02:39.4]} 26. Nxe4
{[%clk 0:03:24.7]} 26... Bxh2+ {[%clk 0:02:31.8]} 27. Kf1 {[%clk 0:03:21.9]}
27... Bd6 {[%clk 0:02:27.2]} 28. Nxd6 {[%clk 0:03:20.2]} 28... Kxd6 {[%clk
0:02:19.9]} 29. Bf4+ {[%clk 0:03:18.6]} 29... Kd5 {[%clk 0:02:16.5]} 30. Qd7+
{[%clk 0:03:13.1]} 30... Kc4 {[%clk 0:02:12.3]} 31. Qc7+ {[%clk 0:03:07]} 31...
Kb5 {[%clk 0:02:03.7]} 32. Qxb6+ {[%clk 0:03:05.6]} 32... Kxb6 {[%clk 0:02:02]}
33. Kg1 {[%clk 0:03:01.4]} 33... Rxf4 {[%clk 0:01:59.8]} 34. Re6+ {[%clk
0:02:58.4]} 34... Ka7 {[%clk 0:01:56.1]} 35. Rae1 {[%clk 0:02:56.1]} 35... Rfh4
{[%clk 0:01:42]} 36. Kf1 {[%clk 0:02:51.6]} 36... Rh1+ {[%clk 0:01:39.7]} 37.
Ke2 {[%clk 0:02:49.5]} 37... R1h2 {[%clk 0:01:28.5]} 38. Re5 {[%clk 0:02:43.1]}
38... Rxe5+ {[%clk 0:01:18.7]} 39. dxe5 {[%clk 0:02:41.6]} 39... Rxg2 {[%clk
0:01:18]} 40. e6 {[%clk 0:02:40.6]} 40... Rg6 {[%clk 0:01:11.9]} 41. e7 {[%clk
0:02:39.2]} 41... Re6+ {[%clk 0:01:09.9]} 42. Kd1 {[%clk 0:02:38.2]} 42... Rxe1+
{[%clk 0:01:08.7]} 43. Kxe1 {[%clk 0:02:37.2]} 43... Nd6 {[%clk 0:01:08.2]} 44.
Ke2 {[%clk 0:02:36.4]} 44... Kb7 {[%clk 0:01:07.8]} 45. Ke3 {[%clk 0:02:35.1]}
45... Kc7 {[%clk 0:01:07.3]} 46. Kd4 {[%clk 0:02:34.1]} 46... Kd7 {[%clk
0:01:06.7]} 47. Kd5 {[%clk 0:02:33.5]} 47... Kxe7 {[%clk 0:01:06]} 48. a4 {[%clk
0:02:31.8]} 48... h5 {[%clk 0:01:01.3]} 49. a5 {[%clk 0:02:30.8]} 49... h4
{[%clk 0:00:50.9]} 50. a6 {[%clk 0:02:29.8]} 50... h3 {[%clk 0:00:50.3]} 51. a7
{[%clk 0:02:28.7]} 51... h2 {[%clk 0:00:49.8]} 52. a8=Q {[%clk 0:02:26.5]} 52...
h1=Q+ {[%clk 0:00:48.8]} 53. f3 {[%clk 0:02:22.4]} 53... Qxf3+ {[%clk
0:00:46.1]} 54. Ke5 {[%clk 0:02:17.5]} 54... Qxa8 {[%clk 0:00:46]} 0-1

[Event "Live Chess"]
[Site "Chess.com"]
[Date "2023.05.21"]
[Round "-"]
[White "EdenHazard8"]
[Black "SmoothBaron"]
[Result "0-1"]
[WhiteElo "1956"]
[BlackElo "2323"]
[TimeControl "300"]
[EndTime "3:23:38 PDT"]
[Termination "SmoothBaron won by resignation"]

1. e4 {[%clk 0:04:59.3]} 1... e5 {[%clk 0:04:57.2]} 2. Nf3 {[%clk 0:04:58.4]}
2... Nc6 {[%clk 0:04:55.7]} 3. Bb5 {[%clk 0:04:58.1]} 3... a6 {[%clk 0:04:53.5]}
4. Ba4 {[%clk 0:04:57.3]} 4... Bc5 {[%clk 0:04:52.1]} 5. O-O {[%clk 0:04:55.8]}
5... Qf6 {[%clk 0:04:49.4]} 6. d3 {[%clk 0:04:54.2]} 6... Nge7 {[%clk
0:04:47.7]} 7. Nc3 {[%clk 0:04:52.8]} 7... O-O {[%clk 0:04:42.7]} 8. Be3 {[%clk
0:04:51]} 8... Ba7 {[%clk 0:04:35.3]} 9. Bb3 {[%clk 0:04:43.8]} 9... h6 {[%clk
0:04:31.8]} 10. Nd5 {[%clk 0:04:41.9]} 10... Nxd5 {[%clk 0:04:30.5]} 11. exd5
{[%clk 0:04:41.8]} 11... Ne7 {[%clk 0:04:26.4]} 12. c4 {[%clk 0:04:38.4]} 12...
d6 {[%clk 0:04:24.4]} 13. Bxa7 {[%clk 0:04:35.4]} 13... Rxa7 {[%clk 0:04:23]}
14. Re1 {[%clk 0:04:35.3]} 14... Bg4 {[%clk 0:04:14.1]} 15. h3 {[%clk
0:04:31.7]} 15... Bxf3 {[%clk 0:04:06.8]} 16. Qxf3 {[%clk 0:04:31.6]} 16... Qxf3
{[%clk 0:04:05.5]} 17. gxf3 {[%clk 0:04:31.5]} 17... Ng6 {[%clk 0:04:04.3]} 18.
Kh2 {[%clk 0:04:26.6]} 18... Raa8 {[%clk 0:04:01.3]} 19. Rg1 {[%clk 0:04:22.5]}
19... Nf4 {[%clk 0:03:46.9]} 20. Bc2 {[%clk 0:04:13.9]} 20... Ne2 {[%clk
0:03:37.9]} 21. Rg4 {[%clk 0:04:10.7]} 21... Nd4 {[%clk 0:03:36.1]} 22. Bb3
{[%clk 0:04:08.3]} 22... Nxf3+ {[%clk 0:03:31.8]} 23. Kg3 {[%clk 0:04:05.1]}
23... Nd4 {[%clk 0:03:30.5]} 24. Rg1 {[%clk 0:04:03.5]} 24... Ne2+ {[%clk
0:03:29.1]} 0-1

[Event "Live Chess"]
[Site "Chess.com"]
[Date "2023.05.21"]
[Round "-"]
[White "CeladonFish"]
[Black "Geomorph"]
[Result "0-1"]
[WhiteElo "1091"]
[BlackElo "1277"]
[TimeControl "300"]
[EndTime "3:23:57 PDT"]
[Termination "Geomorph won by resignation"]

1. d4 {[%clk 0:04:59.2]} 1... d5 {[%clk 0:04:59]} 2. c4 {[%clk 0:04:57.7]} 2...
c6 {[%clk 0:04:58.2]} 3. Nc3 {[%clk 0:04:55.5]} 3... Nf6 {[%clk 0:04:57.2]} 4.
Bf4 {[%clk 0:04:53.8]} 4... Bf5 {[%clk 0:04:55.1]} 5. cxd5 {[%clk 0:04:52.4]}
5... cxd5 {[%clk 0:04:53.6]} 6. Nb5 {[%clk 0:04:50.8]} 6... Na6 {[%clk
0:04:49.8]} 7. Qa4 {[%clk 0:04:46.4]} 7... Bd7 {[%clk 0:04:43.1]} 8. e3 {[%clk
0:04:39.8]} 8... h6 {[%clk 0:04:34.2]} 9. Qc2 {[%clk 0:04:33]} 9... Rc8 {[%clk
0:04:32.6]} 10. Nc7+ {[%clk 0:04:25.5]} 10... Nxc7 {[%clk 0:04:30]} 11. Bxc7
{[%clk 0:04:24.2]} 11... Rxc7 {[%clk 0:04:29.3]} 12. Qb3 {[%clk 0:04:18.3]}
12... e6 {[%clk 0:04:27.2]} 13. Bb5 {[%clk 0:04:12.4]} 13... Be7 {[%clk
0:04:22.4]} 14. Nf3 {[%clk 0:04:05.9]} 14... O-O {[%clk 0:04:20.9]} 15. Ne5
{[%clk 0:04:04.4]} 15... Bxb5 {[%clk 0:04:12.3]} 16. Qxb5 {[%clk 0:04:02.3]}
16... a6 {[%clk 0:04:10.4]} 17. Qa4 {[%clk 0:03:55.4]} 17... Bd6 {[%clk
0:04:04.2]} 18. O-O {[%clk 0:03:53.8]} 18... Ne4 {[%clk 0:04:01.1]} 19. f3
{[%clk 0:03:49.2]} 19... Bxe5 {[%clk 0:03:45.4]} 20. dxe5 {[%clk 0:03:47.4]}
20... Ng5 {[%clk 0:03:44.9]} 21. f4 {[%clk 0:03:46]} 21... Ne4 {[%clk
0:03:43.6]} 22. Rfc1 {[%clk 0:03:41]} 22... Rxc1+ {[%clk 0:03:34]} 23. Rxc1
{[%clk 0:03:39.1]} 23... Qh4 {[%clk 0:03:33.1]} 24. Qd1 {[%clk 0:03:28.2]} 24...
Qf2+ {[%clk 0:03:27.6]} 25. Kh1 {[%clk 0:03:26.8]} 25... Qxb2 {[%clk 0:03:23.8]}
26. Rc2 {[%clk 0:03:21.7]} 26... Nf2+ {[%clk 0:03:09.4]} 27. Kg1 {[%clk
0:03:17.5]} 27... Nxd1 {[%clk 0:03:07.4]} 28. Rxb2 {[%clk 0:03:17.1]} 28... Nxb2
{[%clk 0:03:06.5]} 0-1

[Event "Live Chess"]
[Site "Chess.com"]
[Date "2023.05.21"]
[Round "-"]
[White "AttackingSnowLeopard"]
[Black "Abde2012"]
[Result "1-0"]
[WhiteElo "2200"]
[BlackElo "738"]
[TimeControl "300"]
[EndTime "3:23:57 PDT"]
[Termination "AttackingSnowLeopard won by checkmate"]

1. Nf3 {[%clk 0:04:58.6]} 1... c6 {[%clk 0:04:58]} 2. g3 {[%clk 0:04:58.5]} 2...
d5 {[%clk 0:04:57]} 3. Bg2 {[%clk 0:04:58.4]} 3... Bf5 {[%clk 0:04:51.2]} 4. O-O
{[%clk 0:04:58.3]} 4... e6 {[%clk 0:04:50]} 5. d3 {[%clk 0:04:57.4]} 5... Bd6
{[%clk 0:04:49.2]} 6. Nbd2 {[%clk 0:04:56.8]} 6... Nf6 {[%clk 0:04:48.7]} 7. Re1
{[%clk 0:04:55.6]} 7... O-O {[%clk 0:04:48.3]} 8. e4 {[%clk 0:04:55]} 8... dxe4
{[%clk 0:04:46.5]} 9. dxe4 {[%clk 0:04:54.5]} 9... Bg4 {[%clk 0:04:44.6]} 10. e5
{[%clk 0:04:53]} 10... Be7 {[%clk 0:04:29.8]} 11. exf6 {[%clk 0:04:51.2]} 11...
Bxf6 {[%clk 0:04:29.3]} 12. Ne4 {[%clk 0:04:50.9]} 12... Bxf3 {[%clk 0:04:24.8]}
13. Qxf3 {[%clk 0:04:49.2]} 13... Qa5 {[%clk 0:04:12.4]} 14. Nxf6+ {[%clk
0:04:47.2]} 14... gxf6 {[%clk 0:04:10.9]} 15. Bh6 {[%clk 0:04:44.7]} 15... Rd8
{[%clk 0:04:05.4]} 16. Qg4+ {[%clk 0:04:42]} 16... Kh8 {[%clk 0:04:03.3]} 17.
Qg7# {[%clk 0:04:41]} 1-0

[Event "Live Chess"]
[Site "Chess.com"]
[Date "2023.05.21"]
[Round "-"]
[White "NatashaRegan"]
[Black "bedsdrout"]
[Result "1-0"]
[WhiteElo "1714"]
[BlackElo "577"]
[TimeControl "300"]
[EndTime "3:23:58 PDT"]
[Termination "NatashaRegan won by checkmate"]

1. e4 {[%clk 0:04:55.7]} 1... e5 {[%clk 0:04:57.9]} 2. f4 {[%clk 0:04:54]} 2...
Bb4 {[%clk 0:04:40.1]} 3. Nf3 {[%clk 0:04:45.6]} 3... Bc5 {[%clk 0:04:24.1]} 4.
fxe5 {[%clk 0:04:38.7]} 4... f6 {[%clk 0:04:14.5]} 5. d4 {[%clk 0:04:35.7]} 5...
Bb6 {[%clk 0:04:07]} 6. exf6 {[%clk 0:04:31]} 6... Nxf6 {[%clk 0:04:01.8]} 7.
Nc3 {[%clk 0:04:29.6]} 7... Nh5 {[%clk 0:03:53.6]} 8. Bg5 {[%clk 0:04:24.1]}
8... Nf6 {[%clk 0:03:45.5]} 9. e5 {[%clk 0:04:21.6]} 9... Qe7 {[%clk 0:03:39]}
10. Be2 {[%clk 0:04:17.1]} 10... Bxd4 {[%clk 0:03:33.2]} 11. Qxd4 {[%clk
0:04:13.2]} 11... c5 {[%clk 0:03:27.4]} 12. Qh4 {[%clk 0:04:09.2]} 12... Nc6
{[%clk 0:03:12.4]} 13. exf6 {[%clk 0:04:05.3]} 13... Qe6 {[%clk 0:03:00.9]} 14.
fxg7 {[%clk 0:04:01.9]} 14... Rg8 {[%clk 0:02:49.2]} 15. Qxh7 {[%clk 0:03:54.9]}
15... Ne7 {[%clk 0:02:39.5]} 16. Bxe7 {[%clk 0:03:48.7]} 16... Kxe7 {[%clk
0:02:23.9]} 17. O-O {[%clk 0:03:45.4]} 17... Qf7 {[%clk 0:02:15.7]} 18. Qh4+
{[%clk 0:03:36.5]} 18... Ke8 {[%clk 0:01:57.8]} 19. Bc4 {[%clk 0:03:31.4]} 19...
Qxg7 {[%clk 0:01:52.7]} 20. Rae1+ {[%clk 0:03:25.3]} 20... Kf8 {[%clk
0:01:39.2]} 21. Ng5+ {[%clk 0:03:22.4]} 21... Qf7 {[%clk 0:01:25.8]} 22. Rxf7#
{[%clk 0:03:19.8]} 1-0

[Event "Live Chess"]
[Site "Chess.com"]
[Date "2023.05.21"]
[Round "-"]
[White "SupremeTactician"]
[Black "raminguy"]
[Result "1-0"]
[WhiteElo "2216"]
[BlackElo "1953"]
[TimeControl "300"]
[EndTime "3:23:58 PDT"]
[Termination "SupremeTactician won by checkmate"]

1. e4 {[%clk 0:04:59.6]} 1... e5 {[%clk 0:04:58.3]} 2. Nf3 {[%clk 0:04:58.8]}
2... Nc6 {[%clk 0:04:55.9]} 3. Nc3 {[%clk 0:04:58.3]} 3... Nf6 {[%clk
0:04:54.6]} 4. Bb5 {[%clk 0:04:58]} 4... Nd4 {[%clk 0:04:53.5]} 5. Bc4 {[%clk
0:04:56.7]} 5... Nxf3+ {[%clk 0:04:52.2]} 6. Qxf3 {[%clk 0:04:55.8]} 6... Bb4
{[%clk 0:04:50.7]} 7. d3 {[%clk 0:04:54.9]} 7... O-O {[%clk 0:04:47.4]} 8. Bg5
{[%clk 0:04:53.7]} 8... Be7 {[%clk 0:04:45.7]} 9. O-O {[%clk 0:04:52.6]} 9... h6
{[%clk 0:04:44.4]} 10. Bxf6 {[%clk 0:04:51.9]} 10... Bxf6 {[%clk 0:04:43.3]} 11.
Nd5 {[%clk 0:04:51.8]} 11... Bg5 {[%clk 0:04:41.1]} 12. g3 {[%clk 0:04:48.9]}
12... c6 {[%clk 0:04:38.7]} 13. Ne3 {[%clk 0:04:48.1]} 13... d6 {[%clk
0:04:32.1]} 14. Qg2 {[%clk 0:04:46.9]} 14... Qb6 {[%clk 0:04:27.9]} 15. Rae1
{[%clk 0:04:41.6]} 15... Qxb2 {[%clk 0:04:23.9]} 16. f4 {[%clk 0:04:39.9]} 16...
exf4 {[%clk 0:04:18.1]} 17. gxf4 {[%clk 0:04:39]} 17... Bh4 {[%clk 0:04:11.1]}
18. Re2 {[%clk 0:04:28.4]} 18... a5 {[%clk 0:03:50]} 19. Kh1 {[%clk 0:04:23.3]}
19... b5 {[%clk 0:03:48.1]} 20. Rg1 {[%clk 0:04:12]} 20... Bf6 {[%clk
0:03:38.8]} 21. Nd1 {[%clk 0:03:56.5]} 21... Qd4 {[%clk 0:03:34.2]} 22. c3
{[%clk 0:03:55.8]} 22... Qb6 {[%clk 0:03:31]} 23. e5 {[%clk 0:03:53.5]} 23...
dxe5 {[%clk 0:03:04.6]} 24. fxe5 {[%clk 0:03:51.9]} 24... Bg5 {[%clk 0:03:02.9]}
25. Bb3 {[%clk 0:03:39.2]} 25... a4 {[%clk 0:02:57.2]} 26. Bc2 {[%clk
0:03:38.3]} 26... c5 {[%clk 0:02:56.4]} 27. d4 {[%clk 0:03:37.3]} 27... cxd4
{[%clk 0:02:48.3]} 28. h4 {[%clk 0:03:30.1]} 28... Bb7 {[%clk 0:02:46.3]} 29.
Be4 {[%clk 0:03:29]} 29... Bxe4 {[%clk 0:02:44.2]} 30. Rxe4 {[%clk 0:03:28.9]}
30... Bc1 {[%clk 0:01:54.7]} 31. Qxg7# {[%clk 0:03:24.2]} 1-0

[Event "Live Chess"]
[Site "Chess.com"]
[Date "2023.05.21"]
[Round "-"]
[White "YrrriKharkiv"]
[Black "Tushinskiy"]
[Result "0-1"]
[WhiteElo "2056"]
[BlackElo "2187"]
[TimeControl "300"]
[EndTime "3:24:04 PDT"]
[Termination "Tushinskiy won by resignation"]

1. d4 {[%clk 0:04:55.9]} 1... d5 {[%clk 0:04:58.8]} 2. c4 {[%clk 0:04:54.4]}
2... c6 {[%clk 0:04:58.7]} 3. cxd5 {[%clk 0:04:53.6]} 3... cxd5 {[%clk
0:04:57.7]} 4. Bf4 {[%clk 0:04:51.5]} 4... Nc6 {[%clk 0:04:57.6]} 5. Nc3 {[%clk
0:04:49.9]} 5... Nf6 {[%clk 0:04:57.5]} 6. Nf3 {[%clk 0:04:48.3]} 6... e6 {[%clk
0:04:56.8]} 7. e3 {[%clk 0:04:47.2]} 7... Bd6 {[%clk 0:04:56.1]} 8. Bxd6 {[%clk
0:04:44.5]} 8... Qxd6 {[%clk 0:04:56]} 9. Bd3 {[%clk 0:04:43.6]} 9... a6 {[%clk
0:04:55.1]} 10. O-O {[%clk 0:04:41.8]} 10... b5 {[%clk 0:04:54.5]} 11. Rc1
{[%clk 0:04:40.2]} 11... Bb7 {[%clk 0:04:53.6]} 12. Qe2 {[%clk 0:04:36.3]} 12...
e5 {[%clk 0:04:50.9]} 13. dxe5 {[%clk 0:04:33.5]} 13... Nxe5 {[%clk 0:04:50.8]}
14. Nxe5 {[%clk 0:04:32.2]} 14... Qxe5 {[%clk 0:04:50.7]} 15. f4 {[%clk
0:04:21.2]} 15... Qe7 {[%clk 0:04:47.2]} 16. Rfe1 {[%clk 0:04:07.7]} 16... O-O
{[%clk 0:04:45.6]} 17. e4 {[%clk 0:04:05.5]} 17... dxe4 {[%clk 0:04:42.4]} 18.
Nxe4 {[%clk 0:04:04]} 18... Nxe4 {[%clk 0:04:41.3]} 19. Bxe4 {[%clk 0:04:03.3]}
19... Bxe4 {[%clk 0:04:39.6]} 20. Qxe4 {[%clk 0:04:02.3]} 20... Qf6 {[%clk
0:04:38.8]} 21. Qe5 {[%clk 0:04:00.5]} 21... Qb6+ {[%clk 0:04:36.6]} 22. Qe3
{[%clk 0:03:58.4]} 22... Qa5 {[%clk 0:04:30.6]} 23. a3 {[%clk 0:03:57.1]} 23...
h6 {[%clk 0:04:29.2]} 24. Qc3 {[%clk 0:03:55.1]} 24... Qb6+ {[%clk 0:04:26.8]}
25. Qe3 {[%clk 0:03:54.4]} 25... Qf6 {[%clk 0:04:25.2]} 26. Qe5 {[%clk
0:03:53.2]} 26... Qg6 {[%clk 0:04:24]} 27. f5 {[%clk 0:03:39.5]} 27... Qg5
{[%clk 0:04:22.4]} 28. Rf1 {[%clk 0:03:25]} 28... Rae8 {[%clk 0:04:14.1]} 29.
Qf4 {[%clk 0:03:21]} 29... Qf6 {[%clk 0:04:12.3]} 30. Qf2 {[%clk 0:03:17.7]}
30... Re5 {[%clk 0:04:09.1]} 31. Rce1 {[%clk 0:03:14.3]} 31... Rfe8 {[%clk
0:04:06.8]} 32. Rxe5 {[%clk 0:03:13.8]} 32... Rxe5 {[%clk 0:04:06.7]} 33. Qd4
{[%clk 0:03:04.9]} 33... a5 {[%clk 0:03:54.7]} 34. Qc3 {[%clk 0:03:03.5]} 34...
Qb6+ {[%clk 0:03:44.6]} 35. Kh1 {[%clk 0:03:00.5]} 35... Rc5 {[%clk 0:03:41.6]}
36. Qe3 {[%clk 0:02:52.5]} 36... Qc6 {[%clk 0:03:38.7]} 37. Re1 {[%clk
0:02:40.4]} 37... Rxf5 {[%clk 0:03:35.7]} 38. h3 {[%clk 0:02:36.8]} 38... Kh7
{[%clk 0:03:30.1]} 39. Rc1 {[%clk 0:02:25.2]} 39... Qf6 {[%clk 0:03:27]} 40. Qd3
{[%clk 0:02:22.9]} 40... g6 {[%clk 0:03:25.2]} 41. Kg1 {[%clk 0:02:16.6]} 41...
Qxb2 {[%clk 0:03:22.9]} 42. Qc3 {[%clk 0:02:12.5]} 42... Qxc3 {[%clk 0:03:17.1]}
43. Rxc3 {[%clk 0:02:11.8]} 43... b4 {[%clk 0:03:15.9]} 44. axb4 {[%clk
0:02:10]} 44... axb4 {[%clk 0:03:15.8]} 45. Rb3 {[%clk 0:02:09.4]} 45... Rb5
{[%clk 0:03:14.6]} 46. Kf2 {[%clk 0:02:07.7]} 46... f5 {[%clk 0:03:13.7]} 47.
Ke3 {[%clk 0:02:07.4]} 47... g5 {[%clk 0:03:12.3]} 48. Kd4 {[%clk 0:02:07.1]}
48... Kg6 {[%clk 0:03:10.7]} 49. Kc4 {[%clk 0:02:06.7]} 49... Rb8 {[%clk
0:03:08.9]} 50. g4 {[%clk 0:02:03.5]} 50... fxg4 {[%clk 0:03:07.1]} 51. hxg4
{[%clk 0:02:02.3]} 51... h5 {[%clk 0:03:06.5]} 52. gxh5+ {[%clk 0:01:55.3]}
52... Kxh5 {[%clk 0:03:06.4]} 53. Rh3+ {[%clk 0:01:53.9]} 53... Kg4 {[%clk
0:03:05.1]} 54. Rh1 {[%clk 0:01:52.5]} 54... b3 {[%clk 0:03:04.2]} 0-1

[Event "Live Chess"]
[Site "Chess.com"]
[Date "2023.05.21"]
[Round "-"]
[White "gmnorfolk"]
[Black "Berdgross"]
[Result "1-0"]
[WhiteElo "2124"]
[BlackElo "670"]
[TimeControl "300"]
[EndTime "3:24:04 PDT"]
[Termination "gmnorfolk won by checkmate"]

1. d4 {[%clk 0:04:57.8]} 1... d5 {[%clk 0:04:59.3]} 2. c4 {[%clk 0:04:53]} 2...
dxc4 {[%clk 0:04:57.6]} 3. e4 {[%clk 0:04:51.2]} 3... e6 {[%clk 0:04:56.2]} 4.
Bxc4 {[%clk 0:04:49.5]} 4... Nc6 {[%clk 0:04:54.2]} 5. Nf3 {[%clk 0:04:47.9]}
5... Nf6 {[%clk 0:04:46.4]} 6. Nc3 {[%clk 0:04:46.3]} 6... Bb4 {[%clk
0:04:43.9]} 7. e5 {[%clk 0:04:43.6]} 7... Ne4 {[%clk 0:04:40.8]} 8. Qd3 {[%clk
0:04:38.7]} 8... Nxc3 {[%clk 0:04:35]} 9. bxc3 {[%clk 0:04:35.9]} 9... Be7
{[%clk 0:04:29.7]} 10. O-O {[%clk 0:04:32.6]} 10... a6 {[%clk 0:04:27]} 11. Bf4
{[%clk 0:04:29.5]} 11... h6 {[%clk 0:04:21.7]} 12. Bb3 {[%clk 0:04:28.3]} 12...
O-O {[%clk 0:04:19.5]} 13. Bc2 {[%clk 0:04:26.6]} 13... Bd7 {[%clk 0:04:09.4]}
14. Qh7# {[%clk 0:04:24.7]} 1-0

[Event "Live Chess"]
[Site "Chess.com"]
[Date "2023.05.21"]
[Round "-"]
[White "Purple1szed"]
[Black "MarkLim1"]
[Result "1-0"]
[WhiteElo "1830"]
[BlackElo "1701"]
[TimeControl "300"]
[EndTime "3:24:17 PDT"]
[Termination "Purple1szed won by resignation"]

1. e4 {[%clk 0:04:59.3]} 1... e6 {[%clk 0:04:58.9]} 2. c4 {[%clk 0:04:58.2]}
2... d5 {[%clk 0:04:58]} 3. cxd5 {[%clk 0:04:58.1]} 3... exd5 {[%clk 0:04:57.3]}
4. exd5 {[%clk 0:04:58]} 4... Nf6 {[%clk 0:04:56.5]} 5. Nf3 {[%clk 0:04:57]}
5... Be7 {[%clk 0:04:55]} 6. Be2 {[%clk 0:04:55.5]} 6... O-O {[%clk 0:04:54.6]}
7. O-O {[%clk 0:04:55.2]} 7... Nbd7 {[%clk 0:04:54.2]} 8. Nc3 {[%clk 0:04:54.5]}
8... Nb6 {[%clk 0:04:53.9]} 9. d4 {[%clk 0:04:50.9]} 9... Nbxd5 {[%clk
0:04:53.3]} 10. Re1 {[%clk 0:04:44.1]} 10... c6 {[%clk 0:04:52.4]} 11. Nxd5
{[%clk 0:04:40.4]} 11... Nxd5 {[%clk 0:04:51.3]} 12. Qb3 {[%clk 0:04:32.6]}
12... Qb6 {[%clk 0:04:48.4]} 13. Bc4 {[%clk 0:04:23.9]} 13... Qxb3 {[%clk
0:04:46.4]} 14. Bxb3 {[%clk 0:04:23.8]} 14... Bf6 {[%clk 0:04:39.2]} 15. Be3
{[%clk 0:04:13.6]} 15... Be6 {[%clk 0:04:34.7]} 16. h3 {[%clk 0:03:51]} 16...
Rad8 {[%clk 0:04:32]} 17. Bc2 {[%clk 0:03:44.1]} 17... h6 {[%clk 0:04:25.6]} 18.
a3 {[%clk 0:03:34.7]} 18... Ne7 {[%clk 0:04:11.3]} 19. Rad1 {[%clk 0:03:12.1]}
19... Bd5 {[%clk 0:04:04.9]} 20. Ne5 {[%clk 0:03:03.8]} 20... Nc8 {[%clk
0:03:57.3]} 21. f3 {[%clk 0:02:50.4]} 21... Nb6 {[%clk 0:03:55.5]} 22. Bd3
{[%clk 0:02:38.1]} 22... Rfe8 {[%clk 0:03:50.8]} 23. Bf4 {[%clk 0:02:26.5]}
23... Bb3 {[%clk 0:03:42]} 24. Rd2 {[%clk 0:02:07.7]} 24... Nc4 {[%clk
0:03:29.3]} 25. Bxc4 {[%clk 0:02:03.5]} 25... Bxc4 {[%clk 0:03:28]} 26. Kf2
{[%clk 0:01:58.5]} 26... Bd5 {[%clk 0:03:17.7]} 27. Ng4 {[%clk 0:01:48]} 27...
Bg5 {[%clk 0:03:07.5]} 28. Bxg5 {[%clk 0:01:46.1]} 28... hxg5 {[%clk 0:03:06.5]}
29. Rde2 {[%clk 0:01:43.7]} 29... Kf8 {[%clk 0:03:03.4]} 30. Rxe8+ {[%clk
0:01:41.6]} 30... Rxe8 {[%clk 0:03:02.2]} 31. Rxe8+ {[%clk 0:01:41.5]} 31...
Kxe8 {[%clk 0:03:00.8]} 32. Ke3 {[%clk 0:01:38.9]} 32... Ke7 {[%clk 0:02:57.2]}
33. Ne5 {[%clk 0:01:36.4]} 33... f6 {[%clk 0:02:54.4]} 34. Nd3 {[%clk
0:01:35.2]} 34... b6 {[%clk 0:02:51.7]} 35. Nb4 {[%clk 0:01:33.8]} 35... Ke6
{[%clk 0:02:47.6]} 36. g3 {[%clk 0:01:31]} 36... g6 {[%clk 0:02:42.1]} 37. f4
{[%clk 0:01:29.5]} 37... gxf4+ {[%clk 0:02:39.4]} 38. Kxf4 {[%clk 0:01:29.4]}
38... g5+ {[%clk 0:02:35.3]} 39. Kg4 {[%clk 0:01:16.9]} 39... Kd6 {[%clk
0:02:31.5]} 40. Kf5 {[%clk 0:01:14.1]} 40... Be6+ {[%clk 0:02:29.1]} 41. Kxf6
{[%clk 0:01:12.5]} 41... Bxh3 {[%clk 0:02:28.2]} 42. Kxg5 {[%clk 0:01:12.2]}
42... c5 {[%clk 0:02:24.6]} 43. dxc5+ {[%clk 0:01:10.9]} 43... bxc5 {[%clk
0:02:23]} 44. Nd3 {[%clk 0:01:09.2]} 44... Kd5 {[%clk 0:02:21.4]} 45. g4 {[%clk
0:01:07.9]} 45... c4 {[%clk 0:02:20.4]} 46. Nf4+ {[%clk 0:01:05.7]} 46... Kd4
{[%clk 0:02:18.8]} 47. Nxh3 {[%clk 0:01:05.6]} 1-0

[Event "Live Chess"]
[Site "Chess.com"]
[Date "2023.05.21"]
[Round "-"]
[White "TheSmoulderingMaster"]
[Black "Greenbecker"]
[Result "0-1"]
[WhiteElo "1688"]
[BlackElo "1657"]
[TimeControl "300"]
[EndTime "3:24:19 PDT"]
[Termination "Greenbecker won by resignation"]

1. e4 {[%clk 0:04:58.9]} 1... e6 {[%clk 0:04:59.2]} 2. d4 {[%clk 0:04:57.5]}
2... d5 {[%clk 0:04:58.8]} 3. Nc3 {[%clk 0:04:56.8]} 3... dxe4 {[%clk
0:04:57.8]} 4. Nxe4 {[%clk 0:04:55.9]} 4... Bd7 {[%clk 0:04:57.5]} 5. Nf3 {[%clk
0:04:54.6]} 5... Bc6 {[%clk 0:04:56.8]} 6. Bd3 {[%clk 0:04:52.8]} 6... Nd7
{[%clk 0:04:55.9]} 7. O-O {[%clk 0:04:50.8]} 7... Ngf6 {[%clk 0:04:55]} 8. Bg5
{[%clk 0:04:48.8]} 8... Be7 {[%clk 0:04:53.6]} 9. Bxf6 {[%clk 0:04:47.2]} 9...
Nxf6 {[%clk 0:04:49]} 10. c3 {[%clk 0:04:46.6]} 10... Nxe4 {[%clk 0:04:47.5]}
11. Bxe4 {[%clk 0:04:45.5]} 11... Bxe4 {[%clk 0:04:46]} 12. Ne5 {[%clk
0:04:43.6]} 12... Bd6 {[%clk 0:04:41.1]} 13. Qh5 {[%clk 0:04:38.7]} 13... g6
{[%clk 0:04:18.1]} 14. Qh6 {[%clk 0:04:35.9]} 14... Qf6 {[%clk 0:04:04]} 15. f4
{[%clk 0:04:30.2]} 15... Bf5 {[%clk 0:03:48.8]} 16. g4 {[%clk 0:04:26.9]} 16...
Bf8 {[%clk 0:03:47.4]} 17. Qh3 {[%clk 0:04:19.9]} 17... Be4 {[%clk 0:03:39.1]}
18. Rae1 {[%clk 0:04:15.5]} 18... Bc6 {[%clk 0:03:34.1]} 19. f5 {[%clk 0:04:12]}
19... gxf5 {[%clk 0:03:22.7]} 20. gxf5 {[%clk 0:04:10.2]} 20... Rg8+ {[%clk
0:03:19.8]} 21. Ng4 {[%clk 0:04:04]} 21... Qg5 {[%clk 0:03:06]} 22. fxe6 {[%clk
0:03:49.6]} 22... Qxg4+ {[%clk 0:03:03.6]} 23. Qxg4 {[%clk 0:03:49.1]} 23...
Rxg4+ {[%clk 0:03:02.5]} 24. Kf2 {[%clk 0:03:49]} 0-1